[Event "Titled Tuesday Blitz August 1 Late 2023"]
[White "Sun, Rick"]
[Black "Koutlas, Nikolaos"]
[WhiteFideId "30909481"]
[BlackFideId "25827138"]
[WhiteElo "2627"]
[BlackElo "2503"]
[Result "0-1"]
[Round "6"]
[TimeControl "180+1"]
[Date "2023.08.01"]
[WhiteClock "0:00:00"]
[BlackClock "0:00:17"]
[Board "53"]

1. d4 {[%clk 0:03:00]}  Nf6 {[%clk 0:02:57]} 2. Nc3 {[%clk 0:03:01]}  d6 {[%clk 0:02:51]} 3. e4 {[%clk 0:02:59]}  g6 {[%clk 0:02:51]} 4. f3 {[%clk 0:02:59]}  Bg7 {[%clk 0:02:50]} 5. Nge2 {[%clk 0:02:58]}  O-O {[%clk 0:02:48]} 6. Be3 {[%clk 0:02:59]}  a6 {[%clk 0:02:38]} 7. Qd2 {[%clk 0:02:57]}  b5 {[%clk 0:02:37]} 8. h4 {[%clk 0:02:56]}  h5 {[%clk 0:02:32]} 9. Bh6 {[%clk 0:02:51]}  c5 {[%clk 0:02:24]} 10. g4 {[%clk 0:02:45]}  hxg4 {[%clk 0:02:19]} 11. h5 {[%clk 0:02:41]}  gxf3 {[%clk 0:02:16]} 12. hxg6 {[%clk 0:02:32]}  fxe2 {[%clk 0:01:46]} 13. Bxe2 {[%clk 0:02:14]}  fxg6 {[%clk 0:01:42]} 14. Bxg7 {[%clk 0:02:11]}  Kxg7 {[%clk 0:01:39]} 15. Qh6+ {[%clk 0:02:10]}  Kf7 {[%clk 0:01:39]} 16. O-O-O {[%clk 0:01:49]}  cxd4 {[%clk 0:01:37]} 17. Nd5 {[%clk 0:01:36]}  Nbd7 {[%clk 0:01:24]} 18. Rdf1 {[%clk 0:01:06]}  Rg8 {[%clk 0:00:45]} 19. Qg5 {[%clk 0:00:24]}  Bb7 {[%clk 0:00:25]} 20. Rh7+ {[%clk 0:00:08]}  Rg7 {[%clk 0:00:23]} 21. Rxg7+ {[%clk 0:00:08]}  Kxg7 {[%clk 0:00:23]} 22. Nf4 {[%clk 0:00:09]}  Qg8 {[%clk 0:00:19]} 23. Qxg6+ {[%clk 0:00:05]}  Kf8 {[%clk 0:00:19]} 24. Qh6+ {[%clk 0:00:03]}  Ke8 {[%clk 0:00:19]} 25. Ne6 {[%clk 0:00:00]}  Qxe6 {[%clk 0:00:17]} 0-1


[Site "https://www.chess.com"]

[Event "Titled Tuesday Blitz August 1 Late 2023"]
[White "brm72"]
[Black "Mortazavi, Ali"]
[BlackFideId "401323"]
[WhiteElo "2609"]
[BlackElo "2500"]
[Result "1-0"]
[Round "6"]
[TimeControl "180+1"]
[Date "2023.08.01"]
[WhiteClock "0:00:20"]
[BlackClock "0:00:03"]
[Board "54"]

1. e4 {[%clk 0:03:00]}  c6 {[%clk 0:02:59]} 2. Nc3 {[%clk 0:02:59]}  d5 {[%clk 0:03:00]} 3. Nf3 {[%clk 0:03:00]}  dxe4 {[%clk 0:03:00]} 4. Nxe4 {[%clk 0:03:01]}  Nf6 {[%clk 0:03:01]} 5. Qe2 {[%clk 0:03:01]}  Be6 {[%clk 0:03:02]} 6. c4 {[%clk 0:02:45]}  Nxe4 {[%clk 0:02:29]} 7. Qxe4 {[%clk 0:02:46]}  g6 {[%clk 0:02:30]} 8. Qe5 {[%clk 0:02:30]}  Rg8 {[%clk 0:02:27]} 9. d4 {[%clk 0:02:27]}  Nd7 {[%clk 0:02:24]} 10. Qe3 {[%clk 0:02:22]}  Nf6 {[%clk 0:02:09]} 11. h3 {[%clk 0:02:20]}  Bg7 {[%clk 0:01:54]} 12. Bd2 {[%clk 0:02:19]}  Qb6 {[%clk 0:01:40]} 13. Bc3 {[%clk 0:02:10]}  h6 {[%clk 0:01:30]} 14. Ne5 {[%clk 0:02:04]}  O-O-O {[%clk 0:01:21]} 15. Nxg6 {[%clk 0:02:00]}  Qc7 {[%clk 0:01:14]} 16. Ne5 {[%clk 0:01:57]}  Bh8 {[%clk 0:01:14]} 17. O-O-O {[%clk 0:01:55]}  Kb8 {[%clk 0:01:14]} 18. g3 {[%clk 0:01:27]}  h5 {[%clk 0:01:07]} 19. Bg2 {[%clk 0:01:26]}  Nd7 {[%clk 0:01:03]} 20. b3 {[%clk 0:01:09]}  Bf6 {[%clk 0:00:51]} 21. Kb2 {[%clk 0:01:05]}  Nb6 {[%clk 0:00:45]} 22. f4 {[%clk 0:01:00]}  Bxe5 {[%clk 0:00:39]} 23. Qxe5 {[%clk 0:00:52]}  Rxg3 {[%clk 0:00:33]} 24. Be4 {[%clk 0:00:49]}  Qxe5 {[%clk 0:00:26]} 25. dxe5 {[%clk 0:00:39]}  Rxd1 {[%clk 0:00:19]} 26. Rxd1 {[%clk 0:00:39]}  Bxh3 {[%clk 0:00:17]} 27. Rd8+ {[%clk 0:00:37]}  Kc7 {[%clk 0:00:17]} 28. Rf8 {[%clk 0:00:37]}  Bg2 {[%clk 0:00:12]} 29. Bf5 {[%clk 0:00:33]}  Rf3 {[%clk 0:00:06]} 30. e6 {[%clk 0:00:24]}  Rf2+ {[%clk 0:00:04]} 31. Ka3 {[%clk 0:00:23]}  fxe6 {[%clk 0:00:03]} 32. Bxe6 {[%clk 0:00:20]}  h4 {[%clk 0:00:03]} 33. Be5# {[%clk 0:00:20]} 1-0


[Site "https://www.chess.com"]

[Event "Titled Tuesday Blitz August 1 Late 2023"]
[White "Harriott, Tyrell"]
[Black "Suder, Jakub"]
[WhiteFideId "2086484"]
[BlackFideId "1195310"]
[WhiteElo "2456"]
[BlackElo "2577"]
[Result "0-1"]
[Round "6"]
[TimeControl "180+1"]
[Date "2023.08.01"]
[WhiteClock "0:00:04"]
[BlackClock "0:00:50"]
[Board "60"]

1. d4 {[%clk 0:03:00]}  d5 {[%clk 0:02:53]} 2. e3 {[%clk 0:03:01]}  Nf6 {[%clk 0:02:50]} 3. Bd3 {[%clk 0:02:59]}  e6 {[%clk 0:02:44]} 4. f4 {[%clk 0:02:55]}  b6 {[%clk 0:02:37]} 5. c3 {[%clk 0:02:54]}  Be7 {[%clk 0:02:33]} 6. Nf3 {[%clk 0:02:53]}  O-O {[%clk 0:02:32]} 7. O-O {[%clk 0:02:53]}  Ba6 {[%clk 0:02:32]} 8. Bxa6 {[%clk 0:02:53]}  Nxa6 {[%clk 0:02:33]} 9. Nbd2 {[%clk 0:02:52]}  c5 {[%clk 0:02:31]} 10. b3 {[%clk 0:02:52]}  Rc8 {[%clk 0:02:26]} 11. Bb2 {[%clk 0:02:51]}  cxd4 {[%clk 0:02:19]} 12. exd4 {[%clk 0:02:50]}  Nc7 {[%clk 0:02:16]} 13. c4 {[%clk 0:02:43]}  Nce8 {[%clk 0:02:11]} 14. Ne5 {[%clk 0:02:42]}  Nd6 {[%clk 0:02:10]} 15. Qf3 {[%clk 0:02:42]}  Nfe4 {[%clk 0:02:03]} 16. Rfd1 {[%clk 0:02:36]}  f6 {[%clk 0:01:59]} 17. Ng4 {[%clk 0:02:14]}  Nxd2 {[%clk 0:01:58]} 18. Rxd2 {[%clk 0:02:13]}  dxc4 {[%clk 0:01:59]} 19. d5 {[%clk 0:01:50]}  c3 {[%clk 0:01:50]} 20. Bxc3 {[%clk 0:01:46]}  Rxc3 {[%clk 0:01:50]} 21. Qxc3 {[%clk 0:01:40]}  Ne4 {[%clk 0:01:50]} 22. Qe3 {[%clk 0:01:30]}  Nxd2 {[%clk 0:01:50]} 23. Qxe6+ {[%clk 0:01:09]}  Kh8 {[%clk 0:01:47]} 24. Rd1 {[%clk 0:01:06]}  Bc5+ {[%clk 0:01:47]} 25. Kh1 {[%clk 0:01:05]}  Re8 {[%clk 0:01:45]} 26. Qf5 {[%clk 0:00:53]}  Qe7 {[%clk 0:01:32]} 27. h3 {[%clk 0:00:46]}  Qe1+ {[%clk 0:01:29]} 28. Kh2 {[%clk 0:00:11]}  Bg1+ {[%clk 0:00:53]} 29. Kh1 {[%clk 0:00:11]}  Bf2+ {[%clk 0:00:51]} 30. Rxe1 {[%clk 0:00:10]}  Rxe1+ {[%clk 0:00:52]} 31. Kh2 {[%clk 0:00:10]}  Nf1+ {[%clk 0:00:49]} 32. Kh1 {[%clk 0:00:04]}  Ng3+ {[%clk 0:00:50]} 0-1


[Site "https://www.chess.com"]

[Event "Titled Tuesday Blitz August 1 Late 2023"]
[White "Karwowski, Kacper"]
[Black "Mike24147"]
[WhiteFideId "1126032"]
[WhiteElo "2558"]
[BlackElo "2396"]
[Result "1-0"]
[Round "6"]
[TimeControl "180+1"]
[Date "2023.08.01"]
[WhiteClock "0:00:20"]
[BlackClock "0:00:03"]
[Board "68"]

1. e4 {[%clk 0:03:00]}  c5 {[%clk 0:02:59]} 2. Nf3 {[%clk 0:02:59]}  e6 {[%clk 0:02:58]} 3. c3 {[%clk 0:02:55]}  Nf6 {[%clk 0:02:57]} 4. e5 {[%clk 0:02:54]}  Nd5 {[%clk 0:02:57]} 5. d4 {[%clk 0:02:54]}  cxd4 {[%clk 0:02:57]} 6. cxd4 {[%clk 0:02:55]}  b6 {[%clk 0:02:58]} 7. g3 {[%clk 0:02:37]}  Be7 {[%clk 0:02:56]} 8. Bg2 {[%clk 0:02:37]}  O-O {[%clk 0:02:56]} 9. O-O {[%clk 0:02:37]}  Bb7 {[%clk 0:02:55]} 10. Nbd2 {[%clk 0:02:34]}  d6 {[%clk 0:02:54]} 11. Re1 {[%clk 0:02:24]}  Nc6 {[%clk 0:02:50]} 12. Ne4 {[%clk 0:02:10]}  dxe5 {[%clk 0:02:49]} 13. dxe5 {[%clk 0:02:09]}  Ndb4 {[%clk 0:02:40]} 14. Bf4 {[%clk 0:01:51]}  Nd3 {[%clk 0:02:31]} 15. Re2 {[%clk 0:01:46]}  Nxf4 {[%clk 0:02:29]} 16. gxf4 {[%clk 0:01:47]}  Qxd1+ {[%clk 0:02:16]} 17. Rxd1 {[%clk 0:01:48]}  Rfd8 {[%clk 0:02:16]} 18. Red2 {[%clk 0:01:46]}  Kf8 {[%clk 0:02:04]} 19. Rxd8+ {[%clk 0:01:37]}  Rxd8 {[%clk 0:02:05]} 20. Rxd8+ {[%clk 0:01:36]}  Nxd8 {[%clk 0:02:05]} 21. Nd4 {[%clk 0:01:36]}  a6 {[%clk 0:01:55]} 22. Nc3 {[%clk 0:01:27]}  Bxg2 {[%clk 0:01:54]} 23. Kxg2 {[%clk 0:01:28]}  Bc5 {[%clk 0:01:52]} 24. Nb3 {[%clk 0:01:26]}  Bb4 {[%clk 0:01:47]} 25. Na4 {[%clk 0:01:08]}  b5 {[%clk 0:01:38]} 26. Nac5 {[%clk 0:01:07]}  a5 {[%clk 0:01:21]} 27. Nd3 {[%clk 0:01:06]}  Nc6 {[%clk 0:01:16]} 28. Nxb4 {[%clk 0:01:05]}  Nxb4 {[%clk 0:01:15]} 29. Nxa5 {[%clk 0:01:05]}  Nxa2 {[%clk 0:01:15]} 30. Kf3 {[%clk 0:01:05]}  Ke7 {[%clk 0:01:13]} 31. Nc6+ {[%clk 0:01:01]}  Kd7 {[%clk 0:01:13]} 32. Nd4 {[%clk 0:01:01]}  b4 {[%clk 0:00:59]} 33. Ke4 {[%clk 0:00:58]}  Kc7 {[%clk 0:00:57]} 34. Kd3 {[%clk 0:00:51]}  Kb6 {[%clk 0:00:48]} 35. Nb3 {[%clk 0:00:35]}  Kb5 {[%clk 0:00:44]} 36. Kd4 {[%clk 0:00:30]}  g6 {[%clk 0:00:39]} 37. Kd3 {[%clk 0:00:22]}  h5 {[%clk 0:00:35]} 38. h4 {[%clk 0:00:19]}  Kb6 {[%clk 0:00:24]} 39. Kc4 {[%clk 0:00:18]}  Kc6 {[%clk 0:00:23]} 40. Nd4+ {[%clk 0:00:19]}  Kb6 {[%clk 0:00:22]} 41. Ne2 {[%clk 0:00:20]}  Kc6 {[%clk 0:00:16]} 42. Kb3 {[%clk 0:00:20]}  Kd5 {[%clk 0:00:15]} 43. Kxa2 {[%clk 0:00:19]}  Ke4 {[%clk 0:00:16]} 44. Kb3 {[%clk 0:00:20]}  Kf3 {[%clk 0:00:16]} 45. Nd4+ {[%clk 0:00:17]}  Kxf4 {[%clk 0:00:13]} 46. Kxb4 {[%clk 0:00:17]}  Kg4 {[%clk 0:00:13]} 47. Kc5 {[%clk 0:00:17]}  Kxh4 {[%clk 0:00:14]} 48. b4 {[%clk 0:00:17]}  Kg4 {[%clk 0:00:14]} 49. b5 {[%clk 0:00:18]}  h4 {[%clk 0:00:15]} 50. b6 {[%clk 0:00:18]}  h3 {[%clk 0:00:15]} 51. Ne2 {[%clk 0:00:17]}  Kf3 {[%clk 0:00:12]} 52. b7 {[%clk 0:00:17]}  h2 {[%clk 0:00:05]} 53. b8=Q {[%clk 0:00:16]}  h1=Q {[%clk 0:00:04]} 54. Qa8+ {[%clk 0:00:16]}  Kxe2 {[%clk 0:00:04]} 55. Qxh1 {[%clk 0:00:17]}  Kxf2 {[%clk 0:00:04]} 56. Qh7 {[%clk 0:00:17]}  g5 {[%clk 0:00:03]} 57. Qxf7+ {[%clk 0:00:17]}  Kg3 {[%clk 0:00:04]} 58. Qxe6 {[%clk 0:00:18]}  g4 {[%clk 0:00:04]} 59. Qf6 {[%clk 0:00:18]}  Kh3 {[%clk 0:00:04]} 60. e6 {[%clk 0:00:19]}  g3 {[%clk 0:00:03]} 61. Qh6+ {[%clk 0:00:20]} 1-0


[Site "https://www.chess.com"]

[Event "Titled Tuesday Blitz August 1 Late 2023"]
[White "Vifleemskaia, Svetlana"]
[Black "Shapiro, Viktor"]
[WhiteFideId "4129490"]
[BlackFideId "4175700"]
[WhiteElo "2388"]
[BlackElo "2556"]
[Result "0-1"]
[Round "6"]
[TimeControl "180+1"]
[Date "2023.08.01"]
[WhiteClock "0:00:39"]
[BlackClock "0:00:59"]
[Board "69"]

1. d4 {[%clk 0:03:00]}  Nf6 {[%clk 0:02:59]} 2. c4 {[%clk 0:02:59]}  e6 {[%clk 0:02:59]} 3. Nc3 {[%clk 0:02:59]}  Bb4 {[%clk 0:02:58]} 4. e3 {[%clk 0:02:58]}  b6 {[%clk 0:02:56]} 5. Ne2 {[%clk 0:02:55]}  Bb7 {[%clk 0:02:56]} 6. a3 {[%clk 0:02:54]}  Be7 {[%clk 0:02:57]} 7. d5 {[%clk 0:02:53]}  O-O {[%clk 0:02:48]} 8. g3 {[%clk 0:02:49]}  d6 {[%clk 0:02:36]} 9. Bg2 {[%clk 0:02:48]}  Nbd7 {[%clk 0:02:30]} 10. O-O {[%clk 0:02:43]}  e5 {[%clk 0:02:20]} 11. b4 {[%clk 0:02:41]}  a5 {[%clk 0:02:18]} 12. Bd2 {[%clk 0:02:38]}  g6 {[%clk 0:02:15]} 13. e4 {[%clk 0:02:34]}  Nh5 {[%clk 0:02:13]} 14. Bf3 {[%clk 0:02:26]}  Ng7 {[%clk 0:02:12]} 15. Bg2 {[%clk 0:02:22]}  f5 {[%clk 0:02:12]} 16. f4 {[%clk 0:02:18]}  axb4 {[%clk 0:02:06]} 17. axb4 {[%clk 0:02:18]}  Rxa1 {[%clk 0:02:07]} 18. Qxa1 {[%clk 0:02:18]}  Bf6 {[%clk 0:02:05]} 19. Qa7 {[%clk 0:02:07]}  Qa8 {[%clk 0:02:01]} 20. Ra1 {[%clk 0:02:03]}  exf4 {[%clk 0:01:58]} 21. Qxa8 {[%clk 0:01:57]}  Rxa8 {[%clk 0:01:57]} 22. Rxa8+ {[%clk 0:01:57]}  Bxa8 {[%clk 0:01:57]} 23. Bxf4 {[%clk 0:01:40]}  Ne5 {[%clk 0:01:41]} 24. Bxe5 {[%clk 0:01:33]}  dxe5 {[%clk 0:01:33]} 25. c5 {[%clk 0:01:20]}  Be7 {[%clk 0:01:30]} 26. d6 {[%clk 0:01:18]}  cxd6 {[%clk 0:01:27]} 27. cxb6 {[%clk 0:01:17]}  Bd8 {[%clk 0:01:24]} 28. Na4 {[%clk 0:01:06]}  Bc6 {[%clk 0:01:23]} 29. b5 {[%clk 0:00:59]}  Bxb5 {[%clk 0:01:19]} 30. Nec3 {[%clk 0:00:59]}  Bxa4 {[%clk 0:01:14]} 31. Nxa4 {[%clk 0:00:57]}  f4 {[%clk 0:01:12]} 32. Bh3 {[%clk 0:00:48]}  Ne8 {[%clk 0:01:00]} 33. b7 {[%clk 0:00:46]}  Bc7 {[%clk 0:00:59]} 34. Nb6 {[%clk 0:00:39]}  Bxb6+ {[%clk 0:00:59]} 0-1


[Site "https://www.chess.com"]

[Event "Titled Tuesday Blitz August 1 Late 2023"]
[White "Fuzesabonyilaci"]
[Black "Santos Flores, Alberto"]
[BlackFideId "3601234"]
[WhiteElo "2357"]
[BlackElo "2552"]
[Result "0-1"]
[Round "6"]
[TimeControl "180+1"]
[Date "2023.08.01"]
[WhiteClock "0:00:04"]
[BlackClock "0:00:10"]
[Board "71"]

1. d4 {[%clk 0:03:00]}  d5 {[%clk 0:02:58]} 2. Nf3 {[%clk 0:03:01]}  Nf6 {[%clk 0:02:58]} 3. g3 {[%clk 0:03:01]}  Bf5 {[%clk 0:02:57]} 4. Bg2 {[%clk 0:03:02]}  c6 {[%clk 0:02:54]} 5. O-O {[%clk 0:03:02]}  h6 {[%clk 0:02:54]} 6. b3 {[%clk 0:02:43]}  e6 {[%clk 0:02:54]} 7. c4 {[%clk 0:02:43]}  Be7 {[%clk 0:02:54]} 8. Nc3 {[%clk 0:02:34]}  Ne4 {[%clk 0:02:53]} 9. Bb2 {[%clk 0:02:31]}  Nxc3 {[%clk 0:02:52]} 10. Bxc3 {[%clk 0:02:30]}  Be4 {[%clk 0:02:53]} 11. Qd2 {[%clk 0:02:11]}  Nd7 {[%clk 0:02:52]} 12. a4 {[%clk 0:02:06]}  O-O {[%clk 0:02:48]} 13. a5 {[%clk 0:02:02]}  b5 {[%clk 0:02:41]} 14. axb6 {[%clk 0:01:57]}  axb6 {[%clk 0:02:40]} 15. Rxa8 {[%clk 0:01:55]}  Qxa8 {[%clk 0:02:41]} 16. Ra1 {[%clk 0:01:55]}  Qb7 {[%clk 0:02:42]} 17. Qa2 {[%clk 0:01:54]}  Rb8 {[%clk 0:02:36]} 18. Qa7 {[%clk 0:01:30]}  Bf6 {[%clk 0:02:33]} 19. Ne5 {[%clk 0:01:02]}  Bxe5 {[%clk 0:02:11]} 20. dxe5 {[%clk 0:01:02]}  Bxg2 {[%clk 0:02:08]} 21. Kxg2 {[%clk 0:01:03]}  Nc5 {[%clk 0:01:59]} 22. b4 {[%clk 0:01:00]}  Ne4 {[%clk 0:01:59]} 23. Be1 {[%clk 0:00:34]}  Qxa7 {[%clk 0:01:56]} 24. Rxa7 {[%clk 0:00:33]}  dxc4 {[%clk 0:01:33]} 25. f3 {[%clk 0:00:25]}  Ng5 {[%clk 0:01:31]} 26. Rc7 {[%clk 0:00:16]}  b5 {[%clk 0:01:30]} 27. Rxc6 {[%clk 0:00:16]}  Nh7 {[%clk 0:01:29]} 28. Kf2 {[%clk 0:00:14]}  Nf8 {[%clk 0:01:27]} 29. Rc7 {[%clk 0:00:13]}  g5 {[%clk 0:01:24]} 30. Ke3 {[%clk 0:00:13]}  Ng6 {[%clk 0:01:24]} 31. Ke4 {[%clk 0:00:10]}  Rd8 {[%clk 0:01:20]} 32. Rc5 {[%clk 0:00:09]}  Rb8 {[%clk 0:00:53]} 33. Rc7 {[%clk 0:00:08]}  Kf8 {[%clk 0:00:45]} 34. Bf2 {[%clk 0:00:08]}  Ke8 {[%clk 0:00:28]} 35. Bc5 {[%clk 0:00:09]}  Rd8 {[%clk 0:00:29]} 36. Bd6 {[%clk 0:00:09]}  Rb8 {[%clk 0:00:17]} 37. Rc5 {[%clk 0:00:08]}  Rb7 {[%clk 0:00:16]} 38. Kd4 {[%clk 0:00:05]}  Kd7 {[%clk 0:00:15]} 39. e4 {[%clk 0:00:05]}  Ne7 {[%clk 0:00:14]} 40. Bxe7 {[%clk 0:00:05]}  Kxe7 {[%clk 0:00:14]} 41. Rc8 {[%clk 0:00:05]}  Rd7+ {[%clk 0:00:13]} 42. Kc3 {[%clk 0:00:05]}  Rd3+ {[%clk 0:00:13]} 43. Kc2 {[%clk 0:00:06]}  Rxf3 {[%clk 0:00:13]} 44. Rc7+ {[%clk 0:00:06]}  Kf8 {[%clk 0:00:12]} 45. Rb7 {[%clk 0:00:07]}  Rf2+ {[%clk 0:00:12]} 46. Kc3 {[%clk 0:00:07]}  Rxh2 {[%clk 0:00:11]} 47. Rxb5 {[%clk 0:00:07]}  Rg2 {[%clk 0:00:11]} 48. Rb8+ {[%clk 0:00:07]}  Kg7 {[%clk 0:00:11]} 49. b5 {[%clk 0:00:07]}  Rxg3+ {[%clk 0:00:12]} 50. Kxc4 {[%clk 0:00:08]}  Rg1 {[%clk 0:00:12]} 51. b6 {[%clk 0:00:08]}  Rb1 {[%clk 0:00:12]} 52. Kc5 {[%clk 0:00:09]}  h5 {[%clk 0:00:11]} 53. Rd8 {[%clk 0:00:08]}  h4 {[%clk 0:00:11]} 54. Rd4 {[%clk 0:00:06]}  Rxb6 {[%clk 0:00:10]} 55. Kxb6 {[%clk 0:00:06]}  g4 {[%clk 0:00:10]} 56. Rd1 {[%clk 0:00:05]}  Kh6 {[%clk 0:00:10]} 57. Kc6 {[%clk 0:00:03]}  Kg5 {[%clk 0:00:10]} 58. Kd7 {[%clk 0:00:03]}  h3 {[%clk 0:00:10]} 59. Ke7 {[%clk 0:00:03]}  g3 {[%clk 0:00:11]} 60. Kxf7 {[%clk 0:00:04]}  h2 {[%clk 0:00:10]} 61. Kxe6 {[%clk 0:00:04]}  g2 {[%clk 0:00:10]} 62. Kd7 {[%clk 0:00:05]}  g1=Q {[%clk 0:00:10]} 63. Rxg1+ {[%clk 0:00:06]}  hxg1=Q {[%clk 0:00:11]} 64. e6 {[%clk 0:00:04]}  Qd4+ {[%clk 0:00:10]} 0-1


[Site "https://www.chess.com"]

[Event "Titled Tuesday Blitz August 1 Late 2023"]
[White "Crispin Ferreras, Darvi Abraham"]
[Black "Toropov, Pavel"]
[WhiteFideId "6402771"]
[BlackFideId "24129178"]
[WhiteElo "2353"]
[BlackElo "2551"]
[Result "0-1"]
[Round "6"]
[TimeControl "180+1"]
[Date "2023.08.01"]
[WhiteClock "0:01:12"]
[BlackClock "0:00:26"]
[Board "72"]

1. e4 {[%clk 0:03:00]}  e6 {[%clk 0:02:59]} 2. d4 {[%clk 0:03:00]}  d5 {[%clk 0:03:00]} 3. Nc3 {[%clk 0:02:59]}  dxe4 {[%clk 0:03:00]} 4. Nxe4 {[%clk 0:02:59]}  Nd7 {[%clk 0:03:01]} 5. Nf3 {[%clk 0:02:59]}  Ngf6 {[%clk 0:03:02]} 6. Bg5 {[%clk 0:02:55]}  Be7 {[%clk 0:03:01]} 7. Nxf6+ {[%clk 0:02:55]}  Nxf6 {[%clk 0:03:00]} 8. Bd3 {[%clk 0:02:55]}  O-O {[%clk 0:02:51]} 9. Qe2 {[%clk 0:02:55]}  c5 {[%clk 0:02:47]} 10. dxc5 {[%clk 0:02:53]}  Qa5+ {[%clk 0:02:46]} 11. c3 {[%clk 0:02:50]}  Qxc5 {[%clk 0:02:47]} 12. O-O {[%clk 0:02:50]}  Bd7 {[%clk 0:02:46]} 13. Bxf6 {[%clk 0:02:42]}  Bxf6 {[%clk 0:02:45]} 14. Bxh7+ {[%clk 0:02:42]}  Kxh7 {[%clk 0:02:38]} 15. Qd3+ {[%clk 0:02:42]}  Kg8 {[%clk 0:02:34]} 16. Qxd7 {[%clk 0:02:42]}  Rfd8 {[%clk 0:02:33]} 17. Qa4 {[%clk 0:02:42]}  b5 {[%clk 0:02:29]} 18. Qb3 {[%clk 0:02:39]}  a5 {[%clk 0:02:28]} 19. Rad1 {[%clk 0:02:38]}  a4 {[%clk 0:02:28]} 20. Qc2 {[%clk 0:02:37]}  a3 {[%clk 0:02:10]} 21. Rxd8+ {[%clk 0:02:35]}  Rxd8 {[%clk 0:02:10]} 22. bxa3 {[%clk 0:02:34]}  Qxc3 {[%clk 0:02:00]} 23. Qxc3 {[%clk 0:02:29]}  Bxc3 {[%clk 0:02:01]} 24. Rb1 {[%clk 0:02:28]}  e5 {[%clk 0:01:50]} 25. g3 {[%clk 0:02:26]}  e4 {[%clk 0:01:45]} 26. Ng5 {[%clk 0:02:26]}  f5 {[%clk 0:01:39]} 27. Rxb5 {[%clk 0:02:25]}  g6 {[%clk 0:01:38]} 28. Ne6 {[%clk 0:02:24]}  Rd2 {[%clk 0:01:31]} 29. a4 {[%clk 0:01:55]}  Rxa2 {[%clk 0:01:26]} 30. Rb7 {[%clk 0:01:42]}  Rxa4 {[%clk 0:01:19]} 31. Nf4 {[%clk 0:01:38]}  Ra6 {[%clk 0:01:11]} 32. h4 {[%clk 0:01:37]}  Be5 {[%clk 0:01:09]} 33. Nd5 {[%clk 0:01:33]}  Kf8 {[%clk 0:01:05]} 34. Ne7 {[%clk 0:01:31]}  Bd4 {[%clk 0:00:47]} 35. h5 {[%clk 0:01:29]}  gxh5 {[%clk 0:00:46]} 36. Nxf5 {[%clk 0:01:29]}  Bc5 {[%clk 0:00:30]} 37. Kg2 {[%clk 0:01:28]}  Ra2 {[%clk 0:00:27]} 38. Rh7 {[%clk 0:01:18]}  Rxf2+ {[%clk 0:00:26]} 39. Kh3 {[%clk 0:01:12]}  Rxf5 {[%clk 0:00:26]} 0-1


[Site "https://www.chess.com"]

[Event "Titled Tuesday Blitz August 1 Late 2023"]
[White "Hajiyev, Kanan"]
[Black "Skytte, Rasmus"]
[WhiteFideId "13404148"]
[BlackFideId "1404210"]
[WhiteElo "2546"]
[BlackElo "2330"]
[Result "1/2-1/2"]
[Round "6"]
[TimeControl "180+1"]
[Date "2023.08.01"]
[WhiteClock "0:00:35"]
[BlackClock "0:00:18"]
[Board "74"]

1. d4 {[%clk 0:03:00]}  Nf6 {[%clk 0:02:54]} 2. Nf3 {[%clk 0:03:01]}  c5 {[%clk 0:02:54]} 3. c4 {[%clk 0:03:02]}  cxd4 {[%clk 0:02:53]} 4. Nxd4 {[%clk 0:03:03]}  e5 {[%clk 0:02:54]} 5. Nc2 {[%clk 0:03:03]}  d5 {[%clk 0:02:53]} 6. cxd5 {[%clk 0:03:04]}  Qxd5 {[%clk 0:02:53]} 7. Qxd5 {[%clk 0:03:04]}  Nxd5 {[%clk 0:02:54]} 8. e4 {[%clk 0:03:05]}  Nb4 {[%clk 0:02:54]} 9. Nxb4 {[%clk 0:03:06]}  Bxb4+ {[%clk 0:02:53]} 10. Bd2 {[%clk 0:03:06]}  Nc6 {[%clk 0:02:53]} 11. Bb5 {[%clk 0:03:05]}  Bd7 {[%clk 0:02:51]} 12. Bxc6 {[%clk 0:03:01]}  Bxd2+ {[%clk 0:02:51]} 13. Kxd2 {[%clk 0:03:02]}  Bxc6 {[%clk 0:02:51]} 14. Nc3 {[%clk 0:03:01]}  O-O-O+ {[%clk 0:02:48]} 15. Ke3 {[%clk 0:03:02]}  Rd4 {[%clk 0:02:48]} 16. Rad1 {[%clk 0:03:02]}  Rhd8 {[%clk 0:02:48]} 17. f3 {[%clk 0:03:02]}  g6 {[%clk 0:02:46]} 18. h4 {[%clk 0:03:00]}  f5 {[%clk 0:02:46]} 19. exf5 {[%clk 0:03:01]}  gxf5 {[%clk 0:02:46]} 20. h5 {[%clk 0:02:59]}  b5 {[%clk 0:02:41]} 21. a3 {[%clk 0:02:59]}  a5 {[%clk 0:02:41]} 22. Kf2 {[%clk 0:02:21]}  Rd2+ {[%clk 0:02:25]} 23. Kg3 {[%clk 0:02:08]}  Rg8+ {[%clk 0:02:23]} 24. Kh4 {[%clk 0:01:53]}  Rdxg2 {[%clk 0:02:22]} 25. Nd5 {[%clk 0:01:41]}  Kb7 {[%clk 0:01:36]} 26. Ne7 {[%clk 0:01:41]}  R8g3 {[%clk 0:01:30]} 27. Nxc6 {[%clk 0:01:40]}  Kxc6 {[%clk 0:01:30]} 28. Rc1+ {[%clk 0:01:38]}  Kb6 {[%clk 0:01:16]} 29. Rhd1 {[%clk 0:01:39]}  Rg7 {[%clk 0:01:04]} 30. Rd6+ {[%clk 0:01:31]}  Kb7 {[%clk 0:01:03]} 31. Kh3 {[%clk 0:01:15]}  f4 {[%clk 0:00:58]} 32. Rg6 {[%clk 0:01:05]}  R7xg6 {[%clk 0:00:42]} 33. hxg6 {[%clk 0:01:05]}  Rg3+ {[%clk 0:00:43]} 34. Kh4 {[%clk 0:01:02]}  hxg6 {[%clk 0:00:44]} 35. Rc5 {[%clk 0:01:02]}  Kb6 {[%clk 0:00:33]} 36. Rxe5 {[%clk 0:01:02]}  Rxf3 {[%clk 0:00:32]} 37. Re6+ {[%clk 0:01:02]}  Kc5 {[%clk 0:00:32]} 38. Rxg6 {[%clk 0:01:01]}  Rf2 {[%clk 0:00:30]} 39. Rg5+ {[%clk 0:00:56]}  Kc4 {[%clk 0:00:29]} 40. b3+ {[%clk 0:00:56]}  Kxb3 {[%clk 0:00:26]} 41. Rxb5+ {[%clk 0:00:57]}  Ka4 {[%clk 0:00:26]} 42. Rf5 {[%clk 0:00:52]}  Rf3 {[%clk 0:00:21]} 43. Kg4 {[%clk 0:00:49]}  Rxa3 {[%clk 0:00:21]} 44. Rxf4+ {[%clk 0:00:49]}  Kb3 {[%clk 0:00:21]} 45. Kf3 {[%clk 0:00:42]}  a4 {[%clk 0:00:18]} 46. Ke2 {[%clk 0:00:42]}  Kc2 {[%clk 0:00:18]} 47. Rc4+ {[%clk 0:00:42]}  Kb2 {[%clk 0:00:17]} 48. Kd2 {[%clk 0:00:36]}  Kb3 {[%clk 0:00:15]} 49. Rc3+ {[%clk 0:00:35]}  Kb4 {[%clk 0:00:15]} 50. Rxa3 {[%clk 0:00:35]}  Kxa3 {[%clk 0:00:15]} 51. Kc3 {[%clk 0:00:33]}  Ka2 {[%clk 0:00:16]} 52. Kc2 {[%clk 0:00:34]}  a3 {[%clk 0:00:17]} 53. Kc1 {[%clk 0:00:34]}  Ka1 {[%clk 0:00:17]} 54. Kc2 {[%clk 0:00:35]}  a2 {[%clk 0:00:18]} 55. Kc1 {[%clk 0:00:35]} 1/2-1/2


[Site "https://www.chess.com"]